Cogmind - Beta 14 @@@ ROGUE MODE // 2025.03.19 @ 19:09:54 Player: CLown Bot Result: Destroyed by D-53 Grenadier with Mini Grenade Launcher Performance ------------- Evolutions (1) 500 Regions Visited (4) 800 Robots Destroyed (28) 140 Value Destroyed (645) 645 Prototype IDs (1) 20 Alien Tech Used (0) 0 Bonus (-8) -8 TOTAL SCORE: 2097 Bonus ------- Friendly Fire -8 Cogmind --------- Core Integrity 0/400 Matter 264/300 Energy 81/100 System Corruption 5% Temperature Hot (226) Movement Core (200) Ox3 Location -9/Mines Parts ------- > --- POWER (2) -------- (None) > --- PROPULSION (2) --- (None) > --- UTILITY (2) ------ Small Storage Unit > --- WEAPON (3) ------- EM Pulse Gun Improved Medium Laser > --- INVENTORY (8) ---- (None) Peak State ------------ > --- POWER ------------ Light Ion Engine Light Ion Engine > --- PROPULSION ------- Light Treads Compact Wheel > --- UTILITY ---------- Structural Scanner Improved Power Shielding > --- WEAPON ----------- Heavy Assault Rifle Flak Cannon Rocket Launcher > --- INVENTORY -------- Light Ion Engine Small Storage Unit EM Pulse Gun Beam Rifle [Rating: 15] Favorites ----------- Power Light Ion Engine Engine Light Ion Engine Propulsion Light Treads Treads Light Treads Wheel Compact Wheel Flight Unit Flight Unit Utility Structural Scanner Device Structural Scanner Storage Small Storage Unit Protection Improved Power Shielding Weapon Assault Rifle Energy Gun EM Pulse Gun Ballistic Gun Assault Rifle Ballistic Cannon Flak Cannon Launcher Rocket Launcher Build | -11 -10 -10 -9 -9 ------- Run | Yrd Mat Min Mat Min Slots Evolved 2 | . . . 2 . Power 1 | . . . 1 . Propulsion . | . . . . . Utility . | . . . . . Weapon 1 | . . . 1 . Parts Attached 28 | 6 9 2 6 5 Power 4 | 1 1 . 1 1 Engine 4 | 1 1 . 1 1 Core . | . . . . . Reactor . | . . . . . Propulsion 8 | 3 3 1 1 . Treads 5 | 2 2 . 1 . Leg . | . . . . . Wheel 2 | 1 . 1 . . Hover . | . . . . . Flight 1 | . 1 . . . Utility 5 | . 3 1 1 . Device 1 | . 1 . . . Storage 2 | . 1 . 1 . Processor . | . . . . . Hackware . | . . . . . Protection 2 | . 1 1 . . Artifact . | . . . . . Weapon 11 | 2 2 . 3 4 Energy Gun 4 | 1 . . . 3 Energy Cannon . | . . . . . Ballistic Gun 4 | 1 1 . 1 1 Ballistic Cannon 1 | . . . 1 . Launcher 2 | . 1 . 1 . Special Weapon . | . . . . . Impact Weapon . | . . . . . Slashing Weapon . | . . . . . Piercing Weapon . | . . . . . Special Melee Weapon . | . . . . . Unidentified Prototypes 1 | . . . . 1 Parts Lost 15 | . 2 1 6 6 Power 3 | . . . 2 1 Propulsion 4 | . . 1 1 2 Utility 3 | . 1 . 2 . Weapon 5 | . 1 . 1 3 Highest Loss Streak 6 | . 2 1 4 6 To Critical Strikes . | . . . . . Average Slot Usage (%) 91 | . 83 99 96 66 Engine 16 | . 14 14 22 9 Treads 18 | . 27 22 10 7 Wheel 5 | . . 5 11 9 Device 8 | . 8 14 5 . Storage 2 | . . 3 3 11 Protection 7 | . 3 10 11 . Energy Gun 1 | . 1 . . 14 Ballistic Gun 18 | . 18 28 15 7 Ballistic Cannon 4 | . . . 11 7 Launcher 4 | . 7 . 6 . Peak Build Rating 15 | 5 7 9 15 11 Average Rating 9 | 3 5 8 14 9 On Entrance 5 | . 5 7 9 6 Naked Turns . | . . . . . Heaviest Build 26 | 7 12 9 26 18 Greatest Support 40 | 20 40 40 20 20 Greatest Overweight (x) 5 | . 1 . 1 5 Average Overweight (x) . | . . . . . Largest Inventory Capacity 8 | 5 5 5 8 8 Average Capacity 5 | 5 5 5 5 8 Most Carried 5 | 5 5 5 5 4 Average Carried 4 | 3 4 4 4 1 Final Capacity 8 | 5 5 5 8 8 Final Carried 5 | 4 5 5 5 . Class Distribution -------------------- 62% | Mutant 35% | Scavenger-Tank Dominant Class ---------------- Mutant | -10/Materials Mutant | -10/Mines Scavenger-Tank | -9/Materials Gunner | -9/Mines Resources | -11 -10 -10 -9 -9 ----------- Run | Yrd Mat Min Mat Min Matter Collected 940 | 233 216 45 446 . Remotely . | . . . . . Salvage Created 775 | . 250 29 484 12 Parts 49 | . 25 1 23 . Haulers Intercepted . | . . . . . Recyclers Shooed 3 | . 1 . 2 . Parts Field Recycled . | . . . . . Retrieved Matter . | . . . . . Parts Self-Destructed . | . . . . . Prevented . | . . . . . Kills | -11 -10 -10 -9 -9 ------- Run | Yrd Mat Min Mat Min Combat Hostiles Destroyed 20 | . 8 2 9 1 Guns 11 | . 4 2 4 1 Cannons 4 | . . . 4 . AOE 5 | . 4 . 1 . Classes Destroyed 8 | . 4 . 3 1 Worker 1 | . . . 1 . Builder 2 | . 2 . . . Recycler 3 | . . . 3 . Watcher 3 | . 2 . 1 . Swarmer 7 | . 3 2 2 . Grunt 8 | . 5 . 3 . Sentry 4 | . . . 4 . Assembled 1 | . . . . 1 Best Kill Streak 4 | . 4 2 3 1 Combat Bots Only 3 | . 3 2 2 1 Max Kills in Single Turn 2 | . 1 1 2 1 Gunslinging . | . . . . . Exploded 1 | . 1 . 1 . Melee . | . . . . . Uniques/NPCs Destroyed . | . . . . . Combat | -11 -10 -10 -9 -9 -------- Run | Yrd Mat Min Mat Min Hostile Shots Fired 201 | . 55 19 102 25 Missed 55 | . 15 5 33 2 Damage Taken 2015 | . 514 102 829 570 Core 498 | . 90 8 153 247 Absorbed by Shields . | . . . . . Redirected to Shielding 101 | . . 5 96 . Core Remaining (%) 80 | 100 . 60 . . Volleys Fired 70 | . 36 8 20 6 Largest 3 | . 2 2 3 3 Hottest 132 | . 50 40 100 132 Shots Fired 140 | . 52 16 56 16 Gun 100 | . 38 16 31 15 Cannon 19 | . . . 18 1 Launcher 21 | . 14 . 7 . Special . | . . . . . Kinetic 108 | . 38 16 49 5 Thermal 9 | . . . . 9 Explosive 21 | . 14 . 7 . Electromagnetic 2 | . . . . 2 Robot Hit Streak 6 | . 6 4 5 3 Robot Miss Streak 6 | . 3 4 6 6 Penetration Max . | . . . . . Secondary Targets 1 | . . 1 . . Max Gunslinging Chain 1 | . . 1 . . Shots Hit Robots 78 | . 32 7 32 7 Core Hits 64 | . 17 4 38 5 Critical Kills . | . . . . . Critical Parts Destroyed . | . . . . . Critical Strikes . | . . . . . Melee Attacks . | . . . . . Impact . | . . . . . Slashing . | . . . . . Piercing . | . . . . . Sneak Attacks . | . . . . . Combat Hostiles . | . . . . . Follow-up Attacks . | . . . . . Damage Inflicted 1835 | . 811 68 840 116 Guns 701 | . 312 68 211 110 Cannons 273 | . . . 267 6 Explosions 861 | . 499 . 362 . Melee . | . . . . . Ramming . | . . . . . Kinetic 888 | . 312 68 478 30 Thermal 74 | . . . . 74 Explosive 861 | . 499 . 362 . Electromagnetic 12 | . . . . 12 Impact . | . . . . . Slashing . | . . . . . Piercing . | . . . . . Highest Corruption 5 | . . . . 5 Average Corruption 5 | . . . . 5 Corruption Purged . | . . . . . Corruption Blocked . | . . . . . Effects 1 | . . . . 1 Matter Fused 1 | . . . . 1 Overload Shots . | . . . . . Overflow Damage 85 | . 39 . 46 . Projectiles . | . . . . . Explosions 85 | . 39 . 46 . Melee . | . . . . . Knockbacks 5 | . . . 5 . Impact . | . . . . . Kinetic 5 | . . . 5 . Secondary . | . . . . . Self-Inflicted Damage 75 | . 59 . 16 . Shots 4 | . 3 . 1 . Rammed . | . . . . . Targets Rammed . | . . . . . Kicked . | . . . . . Crushed . | . . . . . Highest Temperature 279 | . 9 . 168 279 Average Temperature 66 | . 5 . 47 180 Received Heat Transfer 622 | . 165 . 237 220 Siege Activations . | . . . . . Robots Corrupted . | . . . . . Combat Hostiles . | . . . . . Parts Fried . | . . . . . Impact Corruptions . | . . . . . Robots Melted . | . . . . . Combat Hostiles . | . . . . . Parts Melted . | . . . . . Heat Transferred 185 | . . . . 185 Parts Sabotaged . | . . . . . Parts Stolen . | . . . . . Parts Stripped . | . . . . . Power Chain Reactions . | . . . . . Alert | -11 -10 -10 -9 -9 ------- Run | Yrd Mat Min Mat Min Peak Influence 333 | . 281 71 333 51 Initial 51 | . . 31 27 51 Average 107 | . 106 47 164 38 Maximum Alert Level 1 | . 1 . 1 . Low Security (%) 83 | 100 82 100 71 100 Level 1 16 | . 17 . 28 . Level 2 . | . . . . . Level 3 . | . . . . . Level 4 . | . . . . . Level 5 . | . . . . . High Security . | . . . . . Max Security . | . . . . . Squads Dispatched 3 | . 1 1 1 . Investigation 1 | . . 1 . . Extermination . | . . . . . Reinforcement 2 | . 1 . 1 . Assault . | . . . . . Garrison . | . . . . . Intercept . | . . . . . Searches Triggered . | . . . . . Construction Impeded 1 | . . . 1 . Haulers Reinforced . | . . . . . Active Scanning Responses . | . . . . . Cargo Convoy Interrupts . | . . . . . Stealth | -11 -10 -10 -9 -9 --------- Run | Yrd Mat Min Mat Min Distress Signals 3 | . 2 . 1 . Communications Jammed . | . . . . . Distress Signals . | . . . . . Times Spotted 57 | . 13 4 23 17 Peak Tracking Total 10 | . 4 3 10 9 Tactical Retreats . | . . . . . Traps | -11 -10 -10 -9 -9 ------- Run | Yrd Mat Min Mat Min Traps Triggered . | . . . . . Indirectly . | . . . . . Trap Hack Attempts . | . . . . . Triggered . | . . . . . Disarmed . | . . . . . Reprogrammed . | . . . . . Reused . | . . . . . Traps Extracted . | . . . . . Installed . | . . . . . Triggered . | . . . . . Machines | -11 -10 -10 -9 -9 ---------- Run | Yrd Mat Min Mat Min Machines Disabled 3 | . . . 3 . Max in Single Turn 2 | . . . 2 . Machines Repaired . | . . . . . Machines Dismantled . | . . . . . Machines Sabotaged . | . . . . . Overloaded Fab Kills . | . . . . . Hacking | -11 -10 -10 -9 -9 --------- Run | Yrd Mat Min Mat Min Machines Accessed 2 | . 1 1 . . Terminals 1 | . 1 . . . Fabricators . | . . . . . Repair Stations . | . . . . . Recycling Units . | . . . . . Scanalyzers . | . . . . . Garrison Access . | . . . . . Total Hacks 2 | . 1 1 . . Successful 1 | . . 1 . . Failed 1 | . 1 . . . Catastrophic 1 | . 1 . . . Database Lockouts . | . . . . . Manual . | . . . . . Terminals 1 | . 1 . . . Fabricators . | . . . . . Repair Stations . | . . . . . Recycling Units . | . . . . . Scanalyzers . | . . . . . Garrison Access . | . . . . . Terminal Hacks 1 | . . 1 . . Open Door 1 | . . 1 . . Fabricator Hacks . | . . . . . Repair Station Hacks . | . . . . . Recycling Unit Hacks . | . . . . . Scanalyzer . | . . . . . Garrison Access Hacks . | . . . . . Unauthorized Hacks . | . . . . . Terminals . | . . . . . Fabricators . | . . . . . Repair Stations . | . . . . . Recycling Units . | . . . . . Scanalyzers . | . . . . . Garrison Access . | . . . . . Data Cores Recovered . | . . . . . Used . | . . . . . Hacking Detections . | . . . . . Full Trace Events . | . . . . . Feedback Events . | . . . . . Feedback Blocked . | . . . . . Robot Schematics Acquired . | . . . . . Robots Built . | . . . . . Authchips . | . . . . . Time . | . . . . . Total Robot Build Rating . | . . . . . Part Schematics Acquired . | . . . . . Parts Built . | . . . . . Authchips . | . . . . . Time . | . . . . . Total Part Build Rating . | . . . . . Parts Repaired . | . . . . . Time . | . . . . . Parts Recycled . | . . . . . Recycled Matter . | . . . . . Retrieved Matter . | . . . . . Retrieved Components . | . . . . . Parts Scanalyzed . | . . . . . Part Schematics Acquired . | . . . . . Parts Damaged . | . . . . . Bothacking | -11 -10 -10 -9 -9 ------------ Run | Yrd Mat Min Mat Min Used RIF Installer . | . . . . . Robots Hacked . | . . . . . Non-combat . | . . . . . Combat . | . . . . . Robot Hacks Applied . | . . . . . Relay Couplers Released . | . . . . . Fabnet Peak Effective % . | . . . . . Robots Rewired . | . . . . . Allies Hacked . | . . . . . Hacks Repelled . | . . . . . Allies | -11 -10 -10 -9 -9 -------- Run | Yrd Mat Min Mat Min Total Allies . | . . . . . Largest Group . | . . . . . Highest-Rated Group . | . . . . . Highest-Rated Ally . | . . . . . Total Orders . | . . . . . Ally Attacks . | . . . . . Total Damage . | . . . . . Kills . | . . . . . Allies Corrupted . | . . . . . Allies Melted . | . . . . . Intel | -11 -10 -10 -9 -9 ------- Run | Yrd Mat Min Mat Min Robot Analysis Total . | . . . . . Derelict Logs Recovered . | . . . . . Drone Launches . | . . . . . Drone Recoveries . | . . . . . Exploration | -11 -10 -10 -9 -9 ------------- Run | Yrd Mat Min Mat Min Turns Passed 1546 | 87 525 312 564 58 Spaces Moved 819 | 55 263 221 259 21 Core 15 | 11 1 . . 3 Treads 639 | 40 262 106 213 18 Legs . | . . . . . Wheels 165 | 4 . 115 46 . Hover . | . . . . . Flight . | . . . . . Fastest Speed 50 | 50 100 100 100 160 Average Speed 158 | 133 159 128 187 172 Slowest Speed 300 | 160 160 160 240 300 Overloaded Moves . | . . . . . Propulsion Burnouts . | . . . . . Robots Hopped . | . . . . . Cave-ins Triggered . | . . . . . Exploration Rate (%) 22 | 5 34 34 24 14 Regions Visited 4 Branch Regions 2 Pre-discovered Areas . | . . . . . Known Exits Taken . | . . . . . Unknown Exits Taken 4 | 1 1 1 1 . Scrap Searched . | . . . . . Spaces Dug 4 | . . . 4 . Terrain Destroyed 94 | . 70 . 24 . Melee . | . . . . . Projectile . | . . . . . AOE 94 | . 70 . 24 . Terrain Rammed . | . . . . . Walls Destroyed . | . . . . . Machines Disabled . | . . . . . Actions | -11 -10 -10 -9 -9 --------- Run | Yrd Mat Min Mat Min Total 948 | 68 316 234 298 32 Wait . | . . . . . Move 815 | 54 262 220 258 21 Hop . | . . . . . Pick Up 21 | 7 3 2 9 . Fast Attach 10 | 2 7 1 . . Attach 17 | 4 1 1 6 5 Detach 1 | 1 . . . . Swap 1 | . 1 . . . Drop 13 | . 6 2 5 . Fire 70 | . 36 8 20 6 Melee . | . . . . . Ram . | . . . . . Kick . | . . . . . Crush . | . . . . . Escape Stasis . | . . . . . Rewire . | . . . . . Trap . | . . . . . Miscellaneous . | . . . . . Route ------- -11/Scrapyard -10/Materials -10/Mines -9/Materials (discovered 2 exits: [*Min x2]) -9/Mines History --------- Turn | Location | Event 6 | -11/Scrapyard | Discovered new exit (range 15) 88 | -11/Scrapyard | Entered Materials 314 | -10/Materials | Build established: Mutant 575 | -10/Materials | Discovered new exit (range 7) 613 | -10/Materials | Entered Mines 634 | -10/Mines | Discovered new exit (range 10) 690 | -10/Mines | Met a Derelict shopkeep closing up shop 925 | -10/Mines | Entered Materials 925 | -9/Materials | Evolved 2 slots: Power x1, Weapon x1 927 | -9/Materials | Discovered new exit (range 14) 1126 | -9/Materials | Discovered new exit (range 12) 1231 | -9/Materials | Build established: Scavenger-Tank 1489 | -9/Materials | Entered Mines 1490 | -9/Mines | Assembled infested the area 1519 | -9/Mines | Lost 4 parts (2p1u1w) 1541 | -9/Mines | Core integrity fell below 50% 1546 | -9/Mines | Core integrity fell below 20% 1547 | -9/Mines | Destroyed by D-53 Grenadier with Mini Grenade Launcher Last Messages --------------- as-62793 destroyed. as-12042 destroyed. Com. Wheel destroyed. as-32713 destroyed. as-64361 destroyed. Destroyed Asb. Hover Unit. as-02907 destroyed. Lgt. Assault Rifle destroyed. System corrupted by crushing effect (+5). System corrupted: Matter fused (-6). Beam Rifle destroyed. as-97258 destroyed. as-17205 destroyed. as-99860 destroyed. The unstable cave ceiling collapses. Lgt. Ion Engine destroyed. as-38631 destroyed. as-69799 destroyed. The unstable cave ceiling collapses. as-28577 destroyed. Map ----- +----------------------------------------------------+ | ?????????????????????????????? | | ?????????????????????????????? | | ?????????????????????????????? | | ?????????????????????????????? | | ?????????????????????????????? | | ?????????????????????????????? | | ?????????????????????????????? | | ?????????????????????????????? | | ?????????????????????????????? | | ?????????????????????????????? | | ?????????????????????????????? | | ?????????????????????????????? | | ????#????????????????????????? | | ???# ????????????????????????? | | ??? ????????????????????????? | | ??? ????????????????????????? | | ??# ????????????????????????? | | ??# ????????????????????????? | | ??# ????????????????????????? | | ??# ????????????????????????? | | ??#a#?##?????######??????????? | | ?## # ###?### ##?????????? | | ?# a ### #?????????? | | ?# # #?????????? | | # ##????????? | | # @ ##???????? | | # #???????? | | # ### #?????? | | ## d#?# #????? | | ?## d #????? | | ??## " ##????? | | ???## %" #?????? | | ???# #?????? | | ???# ## #?????? | | ???## #### ?????? | | ????#####??## ????? | | ????????????## ???? | | ?????????????# ???? | | ?????????????# ??? | | ?????????????# ###???? | | ?????????????## ## #??????? | | ???????????????## ?? ????????? | | ?????????????????????????????? | | ?????????????????????????????? | | ?????????????????????????????? | | ?????????????????????????????? | | ?????????????????????????????? | | ?????????????????????????????? | | ?????????????????????????????? | | ?????????????????????????????? | +----------------------------------------------------+ Best States ------------- Heat Dissipation 28 Energy Generation 15 Energy Capacity 150 Matter Stores 299 Matter Capacity 400 Sight Range 16 Terrain Scan Density 10 Armor Coverage 150 Power Shielding 66 Evasion (%) 50 Recoil Reduction 2 Item Schematics ----------------- None Robot Schematics ------------------ None Fabricated ------------ Nothing Alien Tech Used ----------------- None Achievements -------------- Risk Taker Challenges ------------ None Game ------ Seed ChromaticSuperquantumReplica Manual? 0 Play Time 00:26:09 Cumulative 1.3 hours Start 2025.03.19 @ 18:41:56 End 2025.03.19 @ 19:09:54 Sessions 1 Manual Loads 0 Difficulty Rogue Special Mode None Game No. 5 Rogue 5 Adventurer 0 Explorer 0 Win Type - Total 0 Types 0/0/0/0/0/0/0/0/0 Lore% 0 Gallery% 4 Achievement% 3 Wizard Run 0 Options --------- Layout 1 ASCII 0 Keyboard 0 Movement Mouse Keybinds 0 Fullscreen 2 Font 24/Smallcaps Map View 50x35 Zoom Use 0% Tactical HUD 0 Map Filters NONE Filters NONE Steam 1 RUN: 9f8698c4-8967-48b1-9179-aa0f7ddef31a